{"text_format":"1","workbook":"xlsx","n_sheets":4,"sheets":["Flowcalc","rekenblad m plooidiepte","bron","faltentiefe"],"not_rendered":{"charts":0,"images":40,"macros":1,"external_links":0,"defined_names":21,"comments":1,"pivot_tables":0},"unopened":[],"bounds":{"document_bytes":16777216,"sheet_cells":100000,"rows_first":2000,"rows_last":500,"rows_between":2000,"halvings":0,"cell_chars":16384,"cell_head_chars":4096},"cells_cut":0,"cells_raw":0,"read":"whole","date_system":"1900"}

{"sheet":"Flowcalc","index":0,"n_rows":52,"n_cols":18,"rows_kept":52,"cut":false,"hidden":false,"merged":[[28,6,28,7],[28,8,28,9],[33,6,33,7],[33,8,33,9],[34,6,34,7],[34,8,34,9],[35,6,35,7],[35,8,35,9],[49,6,49,7],[49,8,49,9],[50,6,50,7],[50,8,50,9],[51,6,51,7],[51,8,51,9],[41,6,41,7],[41,8,41,9],[42,6,42,7],[42,8,42,9],[43,6,43,7],[43,8,43,9],[16,6,16,7],[16,8,16,9],[17,6,17,7],[17,8,17,9],[9,8,9,9],[9,6,9,7],[10,6,10,7],[11,6,11,7],[10,8,10,9],[11,8,11,9],[23,6,23,7],[23,8,23,9],[24,8,24,9],[25,6,25,7],[25,8,25,9]]}
[null,"invullen","railtype",6200,{"$f":"VLOOKUP(D1,bron!A2:D40,2,0)","v":"breedspoor"},null,null,null,null,"systeem",{"$f":"D1","v":6200},{"$f":"systeemlengte","v":350},"cm"]
[null,"invullen","systeemlengte",350,"cm, incl poullies",null,null,null,null,"typering",{"$f":"VLOOKUP(TRUE,$A$11:$N$55,2,0)","v":"5600 midd.sl., geen overlap, 2 rechte beugels"},null,null,null,null,"Halbe Falten tiefe (cm)","gevonden:",{"$f":"INDEX(Q4:R5,MATCH(D6,P4:P5),MATCH(D5,Q3:R3))","v":6}]
[null,"kies","pakket","1, Links",null,null,null,null,null,"pakket",{"$f":"IF(D3=\"\",\"geen opgave\",D3)","v":"1, Links"},"bediening",{"$f":"IF(D4=\"\",\"geen opgave\",D4)","v":"geen opgave"},null,null,"glijderafst",6,8]
[null,"kies","bedieningszijde",null,null,null,null,null,null,{"$f":"\"aantal \"&VLOOKUP(D1,bron!A2:D40,3,0)","v":"aantal 4014-12"},{"$f":"VLOOKUP(TRUE,$A$11:$N$55,4,0)","v":46},null,null,null,"plooitoesl",2,4.5,6]
[null,"kies","glijderafstand 6 of 8",8,"cm",null,null,null,null,{"$f":"\"aantal \"&E9","v":"aantal 2021-FL"},{"$f":"VLOOKUP(TRUE,$A$11:$N$55,5,0)","v":52},null,null,null,null,2.8,7,9]
[null,"kies","plooitoeslag",2,null,null,null,null,null,{"$f":"F9","v":"4074-10FL"},{"$f":"VLOOKUP(TRUE,$A$11:$N$55,6,0)","v":2},null,"stuks"]
[null,null,null,null,null,null,null,null,null,{"$f":"VLOOKUP(D5,bron!F2:I3,4,0)","v":"4014-22-080-TR"},{"$f":"VLOOKUP(TRUE,$A$11:$N$55,7,0)","v":3.8},{"$f":"IF(VLOOKUP(TRUE,$A$11:$N$55,8,0)=0,\"\",\"en \"&VLOOKUP(TRUE,$A$11:$N$55,8,0))","v":"en 3,8"},"m"]
[null,null,null,null,null,null,null,null,null,"eindstop(s)",{"$f":"IF(VLOOKUP(TRUE,$A$11:$N$55,11,0)=\"zit in voorloper-set\",\"zit in voorloper-set\",VLOOKUP(TRUE,$A$11:$N$55,11,0)&\" x \"&VLOOKUP(D1,bron!A2:D30,4,0))","v":"zit in voorloper-set"}]
[null,null,null,"2014-12/4014-12","2021-FL","4074-10FL","4014-22-060-TR/4014-22-080-TR",null,null,"voorloper(s)",{"$f":"VLOOKUP(TRUE,$A$11:$N$55,13,0)","v":"2 x 5675-3010"},{"$f":"IF(VLOOKUP(TRUE,$A$11:$N$55,14,0)=0,\"\",\"+ \"&VLOOKUP(TRUE,$A$11:$N$55,14,0))","v":""},null,"v 1.5"]
["Handbediend",null,null,"glijders","haak","voorloophaak","tapelengte [m]",null,"min.stofbreedte [m]",null,"eindstops",null,"voorlopersets"]
[false,"HB enkelpakket, geen overlap",null,{"$f":"IF(MOD((CEILING(systeemlengte/glijderafstand,1)+1),2)=0,CEILING(systeemlengte/glijderafstand,1)+1,CEILING(systeemlengte/glijderafstand,1)+2)\n+N(\"als afgeronde aantal tussenafstanden+1 deelbaar is door 2, dan zo laten anders er 2 glijders bij tellen\")","v":46},{"$f":"D11+F11+N(\"voor elke voorloperhaak 1 extra haak rekenen\")","v":48},2,{"$f":"((D11-1)*CEILING(glijderafstand*$D$6,1)+2*$R$2)/100+N(\"aantal glijders-1 maal de plooien en dan nog + 2x de halve 'faltentiefe'\")","v":7.32},null,{"$f":"G11-0.02","v":7.3000000000000007},null,2,null,"-"]
[null,null,null,"pin van 1e glijder\n komt onder de eindstop",null,null,"hiervan nog 1cm omslaan aan beide uiteinden",null,"is exclusief stofbreedte voor zijzoom"]
[false,"HB middensluitend, geen overlap",null,{"$f":"IF(MOD((CEILING(0.5*systeemlengte/glijderafstand,1)+1),2)=0,2*(CEILING(0.5*systeemlengte/glijderafstand,1)+1),2*(CEILING(0.5*systeemlengte/glijderafstand,1)+2))","v":48},{"$f":"D13+F13","v":52},4,{"$f":"(((D13/2)-1)*CEILING(glijderafstand*$D$6,1)+2*R2)/100+N(\"halve aantal glijders-1 maal de plooien en dan nog + 2x de halve 'faltentiefe'\")","v":3.8},{"$f":"(((D13/2)-1)*CEILING(glijderafstand*$D$6,1)+2*R2)/100+N(\"halve aantal glijders-1 maal de plooien en dan nog + 2x de halve 'faltentiefe'\")","v":3.8},{"$f":"G13-0.02","v":3.78},{"$f":"H13-0.02","v":3.78},2,null,"-"]
[null,null,null,"pin van 1e glijder\n komt onder de eindstop",null,null,"hiervan nog 1cm omslaan aan beide uiteinden","hiervan nog 1cm omslaan aan beide uiteinden","is exclusief stof voor zijzoom","is exclusief stofbreedte voor zijzoom"]
[false,"HB middensl., geen overlap, 2 beugels",null,{"$f":"IF(MOD((CEILING(0.5*systeemlengte/glijderafstand,1)+1),2)=0,2*(CEILING(0.5*systeemlengte/glijderafstand,1)+1),2*(CEILING(0.5*systeemlengte/glijderafstand,1)+2))","v":48},{"$f":"D15+F15","v":52},4,{"$f":"(((D15/2)-1)*CEILING(glijderafstand*$D$6,1)+2*R4)/100+N(\"halve aantal glijders-1 maal de plooien en dan nog + 2x de halve 'faltentiefe'\")","v":3.8},{"$f":"(((D15/2)-1)*CEILING(glijderafstand*$D$6,1)+2*R4)/100+N(\"halve aantal glijders-1 maal de plooien en dan nog + 2x de halve 'faltentiefe'\")","v":3.8},{"$f":"G15-0.02","v":3.78},{"$f":"H15-0.02","v":3.78},2,null,"2 x 4075-1000"]
[null,null,null,"pin van 1e glijder\n komt onder de eindstop",null,null,"hiervan nog 1cm omslaan aan beide uiteinden","hiervan nog 1cm omslaan aan beide uiteinden","is exclusief stofbreedte voor zijzoom","is exclusief stofbreedte voor zijzoom"]
[false,"HB enkelpakket, rechte beugel",null,{"$f":"D11","v":46},{"$f":"E11","v":48},2,{"$f":"G11","v":7.32},null,{"$f":"I11","v":7.3000000000000007},null,2,null,"4075-1000"]
[null,null,"2075-FL of 4074-FL,\nbijvoorbeeld voor trekstang","pin 1e gijder\nin eindstop,\npin laatste in beugel","verandert niet tov \n'geen overlap'",null,"hiervan nog 1cm omslaan aan beide uiteinden",null,"is exclusief stofbreedte voor zijzoom"]
[false,"HB middensluitend, overlap, 1 beugel",null,{"$f":"D13","v":48},{"$f":"E13+1","v":53},3,{"$f":"G13+0.1+N(\"waarde van 10cm is de extra lengte '10 pockets'  binnendoor de Swingflow beugel tov 4074-10FL\")","v":3.9},{"$f":"H13","v":3.8},{"$f":"I13+0.1+N(\"waarde van 10cm is de extra lengte '10 pockets'  binnendoor de Swingflow beugel tov 4074-10FL\")","v":3.88},{"$f":"J13","v":3.78},2,null,"4074-30FL"]
[null,null,"2074-FL en 2075-FL\n4074-FL en 4075-FL","palletje 1e en laatste glijder\n komen onder de eindstops","1 extra in overlapbeugel tov 4074-10FL",null,"pakket met overlap,\nhiervan nog 1cm omslaan aan beide uiteinden","hiervan nog 1cm omslaan aan beide uiteinden","pakket met overlap, \nis exclusief stofbreedte voor zijzoom","is exclusief stofbreedte voor zijzoom"]
[false,"HB middensl., overlap, 2 beugels",null,{"$f":"D13","v":48},{"$f":"E19","v":53},3,{"$f":"G19","v":3.9},{"$f":"H19","v":3.8},{"$f":"I19","v":3.88},{"$f":"J19","v":3.78},2,null,"4074-30FL","4075-1000"]
[null,null,null,"palletje 1e en laatste glijder\n komen onder de eindstops",null,null,"pakket met overlap,\nhiervan nog 1cm omslaan aan beide uiteinden","hiervan nog 1cm omslaan aan beide uiteinden","pakket met overlap, \nis exclusief stofbreedte voor zijzoom","is exclusief stofbreedte voor zijzoom"]
[]
["koord 5100 en 5300",null,null,"glijders","haak","voorloophaak","tapelengte [m]",null,"min.stofbreedte [m]",null,"eindstops",null,"voorlopersets"]
[false,"5100 enkelpakket, overlapbeugel",null,{"$f":"IF(MOD((CEILING((systeemlengte-8-6.5)/glijderafstand,1)+1),2)=0,CEILING((systeemlengte-8-6.5)/glijderafstand,1),CEILING((systeemlengte-8-6.5)/glijderafstand,1)+1)+N(\"8cm aftrek voor bereik Swingbeugel en 6,5 (ervaringswaarde) voor poulli, glijders moet hier oneven aantal zijn\")","v":43},{"$f":"D25+4","v":47},1,{"$f":"((D35*CEILING(glijderafstand*$D$6,1)+0.5*R2+10)/100)+N(\"aantal glijders-1 maal de plooien +( 1 plooi bij motor/koordpoulli + halbe faltentiefe (Gerster alg opm.))) +10cm stof voor in onze voorloper\")","v":7.01},null,{"$f":"G25-0.02","v":6.99},null,"zit in voorloper-set","5100","5174-30FL"]
[null,null,null,null,"haak 1 en 2 bij poully, laatste 3 aan overlapbeugel",null,"hiervan nog 1cm omslaan aan beide uiteinden",null,"is exclusief stofbreedte voor zijzoom",null,"houdt de 1e glijder bij de poully op de plaats"]
[false,"5100 midensl., overlap, 2 beugels",null,{"$f":"D19-2","v":46},{"$f":"E19","v":53},3,{"$f":"G19","v":3.9},{"$f":"H19","v":3.8},{"$f":"I19","v":3.88},{"$f":"J19","v":3.78},"zit in voorloper-set","5100","5174-30FL","5175-3010"]
[null,null,null,null,null,null,"pakket met overlap",null,"pakket met overlap",null,"houdt de 1e glijder bij de poully op de plaats"]
[false,"5300 enkelpakket, overlapbeugel",null,{"$f":"IF(MOD((CEILING((systeemlengte-8-6.5)/glijderafstand,1)+1),2)=0,CEILING((systeemlengte-8-6.5)/glijderafstand,1),CEILING((systeemlengte-8-6.5)/glijderafstand,1)+1)+N(\"8cm aftrek voor bereik Swingbeugel en 6,5 (ervaringswaarde) voor poulli, glijders moet hier oneven aantal zijn\")","v":43},{"$f":"D29+4","v":47},1,{"$f":"((D35*CEILING(glijderafstand*$D$6,1)+0.5*R2+10)/100)+N(\"aantal glijders-1 maal de plooien +( 1 plooi bij motor/koordpoulli + halbe faltentiefe (Gerster alg opm.))) +10cm stof voor in onze voorloper\")","v":7.01},null,{"$f":"G29-0.02","v":6.99},null,"zit in voorloper-set","5300","5174-30FL"]
[null,null,null,null,null,null,null,null,null,null,"houdt de 1e glijder bij de poully op de plaats"]
[false,"5100 midensl., overlap, 2 beugels",null,{"$f":"D19-2","v":46},{"$f":"E19","v":53},3,{"$f":"G19","v":3.9},{"$f":"H19","v":3.8},{"$f":"I19","v":3.88},3.78,"zit in voorloper-set","5300","5174-30FL","5175-3010"]
[null,null,null,null,null,null,"pakket met overlap",null,"pakket met overlap",null,"houdt de 1e glijder bij de poully op de plaats"]
[]
["koord 5600",null,null,"glijders","haak","voorloophaak","tapelengte [m]",null,"min.stofbreedte [m]",null,"eindstops",null,"voorlopersets"]
[false,"5600 enkelpakket, overlapbeugel",null,{"$f":"IF(MOD((CEILING((systeemlengte-8-6.5)/glijderafstand,1)+1),2)=0,CEILING((systeemlengte-8-6.5)/glijderafstand,1),CEILING((systeemlengte-8-6.5)/glijderafstand,1)+1)+N(\"8cm aftrek voor bereik Swingbeugel en 6,5 (ervaringswaarde) voor poulli, glijders moet hier oneven aantal zijn\")","v":43},{"$f":"D35+4","v":47},0,{"$f":"((D35*CEILING(glijderafstand*$D$6,1)+0.5*R2+10)/100)+N(\"aantal glijders-1 maal de plooien +( 1 plooi bij motor/koordpoulli + halbe faltentiefe (Gerster alg opm.))) +10cm stof voor in onze voorloper\")","v":7.01},null,{"$f":"G35-0.02","v":6.99},null,"zit in voorloper-set","5600:","5674-30FL"]
[null,null,null,null,"haak 1 en 2 aan poully, laatste 3 aan overlapbeugel",null,"hiervan nog 1cm omslaan aan beide uiteinden",null,"is exclusief stofbreedte voor zijzoom",null,"houdt de 1e glijder bij de poully op de plaats"]
[true,"5600 midd.sl., geen overlap, 2 rechte beugels",null,{"$f":"D13-2","v":46},{"$f":"E13","v":52},2,{"$f":"G13","v":3.8},{"$f":"H13","v":3.8},{"$f":"I13","v":3.78},{"$f":"J13","v":3.78},"zit in voorloper-set","5600:","2 x 5675-3010"]
[null,null,null,"bij beide poullies\n1 glijder minder,\nmidden: palletjes\nnodig",null,null,null,null,null,null,"houden de 1e glijder bij de poullies op de plaats"]
[false,"5600 middensluitend, overlap 2 beugels",null,{"$f":"D19-2","v":46},{"$f":"E19","v":53},1,{"$f":"G19","v":3.9},{"$f":"H19","v":3.8},{"$f":"I19","v":3.88},{"$f":"J19","v":3.78},"zit in voorloper-set","5600:","5674-30FL","5675-3010"]
[null,null,"met 'Swing'beugel","bij beide poullies\n1 glijder minder,\nmidden: palletjes\nnodig",null,null,"pakket met overlap",null,"pakket met overlap",null,"houden de 1e glijder bij de poullies op de plaats"]
[]
["elektr.6200",null,null,"glijders","haak","voorloophaak","tapelengte [m]",null,"min.stofbreedte [m]",null,"eindstops",null,"voorlopersets"]
[false,"EB enkelpakket, overlapbeugel",null,{"$f":"IF(MOD((CEILING((systeemlengte-8-6.5)/glijderafstand,1)+1),2)=0,CEILING((systeemlengte-8-6.5)/glijderafstand,1),CEILING((systeemlengte-8-6.5)/glijderafstand,1)+1)+N(\"8cm aftrek voor bereik Swingbeugel en 6,5 (ervaringswaarde) voor poulli, glijders moet hier oneven aantal zijn\")","v":43},{"$f":"D43+4","v":47},0,{"$f":"((D43*CEILING(glijderafstand*$D$6,1)+0.5*R2+10)/100)+N(\"aantal glijders-1 maal de plooien +( 1 plooi bij motor/koordpoulli + halbe faltentiefe (Gerster alg opm.))) +10cm stof voor in onze voorloper\")","v":7.01},null,{"$f":"G43-0.02","v":6.99},null,"zit in voorloper-set","6200:","6274-30FL"]
[null,null,null,null,"haak 1 en 2 aan poully, laatste 3 aan 'swing' beugel' ",null,"hiervan nog 1cm omslaan aan beide uiteinden",null,"is exclusief stofbreedte voor zijzoom",null,"houdt de 1e glijder bij de poully op de plaats"]
[false,"EB, geen overlap, 2 rechte beugels",null,{"$f":"D13-2","v":46},{"$f":"E13","v":52},2,{"$f":"G13","v":3.8},{"$f":"H13","v":3.8},{"$f":"I13","v":3.78},{"$f":"J13","v":3.78},"zit in voorloper-set","6200:","2 x 6275-3010"]
[null,null,null,"bij beide poullies\n1 glijder minder,\nmidden: palletjes\nnodig",null,null,null,null,null,null,"houden de 1e glijder bij de poullies op de plaats"]
[false,"EB middensluitend, overlap 2 beugels",null,{"$f":"D19-2","v":46},{"$f":"E19","v":53},1,{"$f":"G19","v":3.9},{"$f":"H19","v":3.8},3.88,3.78,"zit in voorloper-set","6200:","6274-30FL","6275-3010"]
[null,null,"met 'Swing'beugel","bij beide poullies\n1 glijder minder,\nmidden: palletjes\nnodig",null,null,"pakket met overlap",null,"pakket met overlap",null,"houden de 1e glijder bij de poullies op de plaats"]
[]
["elektr.6200 met compacte poully",null,null,"glijders","haak","voorloophaak","tapelengte [m]",null,"min.stofbreedte [m]",null,"eindstops",null,"voorloperset"]
[false,"EB enkelpakket","met korte beugel",{"$f":"IF(MOD((CEILING((systeemlengte-6.5)/glijderafstand,1)),2)=0,CEILING((systeemlengte-6.5)/glijderafstand,1)+1,CEILING((systeemlengte-6.5)/glijderafstand,1)+2)+N(\" als afgeronde aantal tussenafstanden deelbaar is door 2 (aantal glijders is dus eentje meer), dan zo laten, anders er 2 glijders bij tellen; en ook: aftrek 6,5 cm (ervaringswaarde) voor poulli, glijders moet hier een even aantal zijn\")","v":45},{"$f":"D51+3","v":48},1,{"$f":"((D43*CEILING(glijderafstand*$D$6,1)+2*0.5*R2+10)/100)+N(\"aantal glijders maal de plooien  + bij beide stof-einden de halbe faltentiefe (Gerster alg opm.) \")","v":7.04},null,{"$f":"G51-0.02","v":7.0200000000000005},null,"zit in voorloper-set","6200:","6275-3010"]
[null,null,null,null,null,null,null,null,null,null,"houdt de 1e glijder bij de poully op de plaats"]

{"sheet":"rekenblad m plooidiepte","index":1,"n_rows":41,"n_cols":12,"rows_kept":41,"cut":false,"hidden":true,"merged":[]}
[]
["invullen ","systeemlengte",169,"cm",null,"geeft","aantal glijders",{"$f":"IF(MOD(CEILING($C$2/$C$3,1),2)=0,CEILING($C$2/$C$3,1),CEILING($C$2/$C$3,1)+1)","v":30},"stuks"]
["kies","glijderafstand",6,"cm",null,"geeft","stofbreedte",{"$f":"$H2*CEILING($C$3*$C$4,1)","v":360},"cm","is exclusief stof voor zoom"]
["kies","plooitoeslag",2,null,null,"geeft","tapelengte",{"$f":"H3+2","v":362},"cm","is stofbreedte+ 2cm"]
["optie","plooidiepte max",null,"cm",null,null,"plooidiepte","..."]
[]
[]
[]
[]
[null,null,null,null,null,null,null,"2014-12"]
["let op:",null,null,null,null,null,null,"4014-12","2021-FL","4074-10FL"]
["bij gordijn open: is de plooi het diepste",null,null,null,null,"Handbediend",null,"glijders","haak","voorloophaak","uitzoeken breedspoor: 1e haakje Flow aan eindstop 4001? of dan 4001-M ivm dikte materiaal?"]
[null,null,null,null,null,"(geen overlap)","enkelpakket",{"$f":"IF(MOD(CEILING($C$2/$C$3,1),2)=0,CEILING($C$2/$C$3,1),CEILING($C$2/$C$3,1)+1)","v":30},{"$f":"H13+J13","v":32},2,"Oplossing anders als er een 2021-FL aan de eindstop komt"]
[null,null,null,null,null,null,"middensluitend",{"$f":"2*H13","v":60},{"$f":"H14+J14","v":64},4]
[]
[null,null,null,null,null,"koordbediend",null,"glijders","haak","voorloophaak",null,"met 4074-1000"]
[null,null,null,null,null,5100,"enkelpakket",{"$f":"IF(MOD(CEILING($C$2/$C$3,1),2)=0,CEILING($C$2/$C$3,1),CEILING($C$2/$C$3,1)+1)","v":30},{"$f":"H17+J17","v":32},2]
[null,null,null,null,null,5300,"middensluitend"]
[]
[null,null,null,null,null,"koordbediend",null,"glijders","haak","voorloophaak",null,"met 5674-30FL"]
[null,null,null,null,null,5600,"enkelpakket",{"$f":"IF(MOD(CEILING($C$2/$C$3,1),2)=0,CEILING($C$2/$C$3,1),CEILING($C$2/$C$3,1)+1)","v":30},{"$f":"H21+J21","v":32},2]
[null,null,null,null,null,null,"middensluitend"]
[]
[null,null,null,null,null,"elektr. bediend",null,"glijders","haak","voorloophaak",null,"met 6274-30FL"]
[null,null,null,null,null,6200,"enkelpakket",{"$f":"IF(MOD(CEILING($C$2/$C$3,1),2)=0,CEILING($C$2/$C$3,1),CEILING($C$2/$C$3,1)+1)","v":30},{"$f":"H25+J25","v":32},2]
[null,null,null,null,null,null,"middensluitend"]
[]
[]
[]
[null,"plooidiepte gestuurd is een wens, om passend te krijgen tov 2 paralelle gordijnen"]
[]
[]
[]
[]
[null,null,null,"gewenste plooidiepte",3]
[null,null,null,"glijderafstand",{"$f":"C3","v":6}]
[]
[null,null,null,"omtrek",null,{"$f":"PI()*SQRT(2*(E35^2+(0.5*E36)^2))","v":18.849555921538759}]
[null,null,null,"halve omtrek",null,{"$f":"0.5*F38","v":9.4247779607693793}]
[null,null,null,"plooitoeslag",{"$f":"F39/E36","v":1.5707963267948966}]
[null,null,null,"in%",{"$f":"ROUND((E40)*100,0)","v":157}]

{"sheet":"bron","index":2,"n_rows":30,"n_cols":14,"rows_kept":30,"cut":false,"hidden":false,"merged":[]}
[null,null,null,null,null,"glijderafstanden","plooitoeslag","idem in perc.","band","systeem",5600,350,"cm"]
[2100,"smalspoor","2014-12",2001,null,6,2,200,"4014-22-060-TR","typering","5600 midd.sl., geen overlap, 2 rechte beugels"]
[2102,"smalspoor","2014-12",2001,null,8,2.5,250,"4014-22-080-TR","pakket","1, Rechts","bediening","Links"]
[2200,"smalspoor","2014-12",2001,null,null,2.8,280,null,"aantal 4014-12",46]
[2400,"smalspoor","2014-12",2001,null,null,null,null,null,"aantal 2021-FL",52]
[2600,"smalspoor","2014-12",2001,null,null,null,null,null,"4074-10FL",2,null,"stuks"]
[2900,"smalspoor","2014-12",2001,null,"1, Links","Links",null,null,"4014-22-080-TR",3.8,"en 3,8","m"]
[2901,"smalspoor","2014-12",2001,null,"1, Rechts","Rechts",null,null,"eindstop(s)","zit in voorloper-set"]
[2904,"smalspoor","2014-12",2001,null,"2, Midd.sluitend",null,null,null,"voorloper(s)","2 x 5675-3010",""]
[2905,"smalspoor","2014-12",2001]
[2906,"smalspoor","2014-12",2001]
[4100,"breedspoor","4014-12",4001]
[4200,"breedspoor","4014-12",4001]
[4400,"breedspoor","4014-12",4001]
[4520,"breedspoor","4014-12",4001,null,null,null,null,null,null,"http://www.wisfaq.nl/pagina.asp?nummer=1852"]
[4530,"breedspoor","4014-12",4001,null,null,null,null,null,null,"benadering"]
[4540,"breedspoor","4014-12",4001,null,null,null,null,null,null,"golf/plooi is halve ellips"]
[4550,"breedspoor","4014-12",4001]
[4600,"breedspoor","4014-12",4001]
[4700,"breedspoor","4014-12",4001,null,null,null,null,null,null,null,"gewenste plooidiepte",3]
[4701,"breedspoor","4014-12",4001,null,null,"Falten tiefe (cm)",null,null,null,null,"glijderafstand",{"$f":"'rekenblad m plooidiepte'!C3","v":6}]
[4702,"breedspoor","4014-12",4001,null,null,null,6,8]
[4703,"breedspoor","4014-12",4001,null,null,200,4.5,6,null,null,"omtrek",null,{"$f":"PI()*SQRT(2*(M20^2+(0.5*M21)^2))","v":18.849555921538759}]
[4705,"breedspoor","4014-12",4001,null,null,250,6,8,null,null,"halve omtrek",null,{"$f":"0.5*N23","v":9.4247779607693793}]
[4800,"breedspoor","4014-12",4001,null,null,280,7,9,null,null,"plooitoeslag",{"$f":"N24/M21","v":1.5707963267948966}]
[4900,"breedspoor","4014-12",4001,null,null,null,null,null,null,null,"in%",{"$f":"ROUND((M25)*100,0)","v":157}]
[5100,"breedspoor","4014-12",4001]
[5300,"breedspoor","4014-12",4001]
[5600,"breedspoor","4014-12",4001]
[6200,"breedspoor","4014-12",4001]

{"sheet":"faltentiefe","index":3,"n_rows":0,"n_cols":0,"rows_kept":0,"cut":false,"hidden":true,"merged":[]}